fUST/lending_fUST_20260203
["ID","MTS","AMOUNT","RATE_DAILY","PERIOD"]
[404380241,1770087043375,-500.0,0.00126027,120]
[404380243,1770087043386,-887.25,0.00126027,120]
[404380245,1770087043399,-500.0,0.00126027,120]
[404380247,1770087043410,-2088.2,0.00126027,120]
[404380249,1770087043422,-1019.02,0.00126027,120]
[404380251,1770087043432,-981.74,0.00126027,120]
[404380253,1770087043442,-9824.34,0.00126027,120]
[404380255,1770087043453,-729.71,0.00126027,120]
[404380256,1770087043463,-5486.017133,0.0012825,120]
[404380258,1770087043476,-1389.11,0.00131505,2]
[404380260,1770087043486,-5890.7,0.00131506,120]
[404380262,1770087043496,-500.0,0.00131506,120]
[404380263,1770087043506,-500.0,0.00131506,120]
[404380265,1770087043516,-887.25,0.00131506,120]
[404380267,1770087043527,-500.0,0.00131506,120]
[404380269,1770087043538,-2088.2,0.00131506,120]
[404380271,1770087043549,-1019.02,0.00131506,120]
[404380273,1770087043559,-981.74,0.00131506,120]
[404380275,1770087043569,-9824.34,0.00131506,120]
[404380277,1770087043581,-729.71,0.00131506,120]
[404380278,1770087043593,-150.04759169,0.00131812,2]
[404380280,1770087043603,-305.8912739,0.00134803,120]
[404380282,1770087043614,-305.857599,0.00135625,120]
[404380284,1770087043626,-1389.11,0.00136985,2]
[404380286,1770087043636,-1389.11,0.00136985,2]
[404380288,1770087043647,-1389.11,0.00136985,2]
[404380290,1770087043657,-1389.11,0.00136985,2]
[404380291,1770087043668,-1389.24952258,0.00136985,2]
[404380293,1770087043678,-575.89972202,0.00136986,120]
[404380298,1770087043704,-150.0,0.00013272,2]
[404380300,1770087043715,-602.48128084,0.00054794,120]
[404380303,1770087043726,-5314.80027798,0.00136986,120]
[404380306,1770087043736,-150.0,0.00136986,120]
[404380309,1770087043746,-500.0,0.00136986,120]
[404380313,1770087043757,-500.0,0.00136986,120]
[404380316,1770087043767,-887.25,0.00136986,120]
[404380319,1770087043778,-469.23213862,0.00136986,120]
[404380322,1770087043788,-2088.2,0.00136986,120]
[404380324,1770087043798,-1019.02,0.00136986,120]
[404380339,1770087043892,-981.74,0.00136986,120]
[404380341,1770087043903,-9824.34,0.00136986,120]
[404380344,1770087043912,-729.71,0.00136986,120]
[404380347,1770087043923,-300.129745,0.00136986,120]
[404380349,1770087043932,-1000.0,0.00138,120]
[404380351,1770087043940,-263.54484654,0.0013899,26]
[404380352,1770087043949,-200.0,0.00138999,120]
[404380354,1770087043959,-6400.67573739,0.00139,120]
[404380361,1770087044030,-24.28623416,0.00139,120]
[404380363,1770087044041,-56653.5878056,0.00139,120]
[404380379,1770087044217,-3e-08,0.00139,120]
[404380396,1770087044693,-155.652,0.00060272,120]
[404380398,1770087044702,-200.55,0.0006999,10]
[404380400,1770087044712,-31244.10020572,0.00139,120]
[404380467,1770087045379,-5677.3500191,0.00139,120]
[404380469,1770087045388,-151.0,0.00139,120]
[404380471,1770087045398,-151.0,0.00139,120]
[404380473,1770087045407,-4082.28479767,0.00142465,120]
[404380737,1770087048037,-442.81646,0.00142465,120]
[404380738,1770087048052,-333.54,0.00142465,120]
[404380739,1770087048063,-1032.05874233,0.00142465,120]
[404380740,1770087048073,-500.0,0.00142465,120]
[404380741,1770087048082,-500.0,0.00142465,120]
[404380742,1770087048091,-887.25,0.00142465,120]
[404380743,1770087048100,-2088.2,0.00142465,120]
[404380744,1770087048110,-1019.02,0.00142465,120]
[404380745,1770087048120,-981.74,0.00142465,120]
[404380746,1770087048130,-9824.34,0.00142465,120]
[404380748,1770087048139,-729.71,0.00142465,120]
[404380750,1770087048148,-300.129745,0.00144196,120]
[404380752,1770087048157,-3000.0,0.001445,120]
[404380754,1770087048166,-150.04759169,0.00144967,2]
[404380756,1770087048175,-150.0,0.00145205,120]
[404380758,1770087048184,-228.06268375,0.00146299,120]
[404380760,1770087048195,-2381.86707009,0.001463,120]
[404380762,1770087048207,-280.2939363,0.001463,120]
[404380764,1770087048218,-1529.74123597,0.001463,120]
[404381629,1770087078032,-500.0,0.00013273,2]
[404381651,1770087118712,-500.0,0.00013273,2]
[404381655,1770087163101,-300.0,0.00013272,2]
[404381656,1770087182837,300.0,0.00013272,2]
[404381658,1770087193265,-500.0,0.00013273,2]
[404381659,1770087193291,-161.71492986,0.00013273,2]
[404381660,1770087193317,-500.0,0.00013273,2]
[404381661,1770087193343,-500.0,0.00013273,2]
[404381662,1770087193382,-500.0,0.00013273,2]
[404381663,1770087193410,-500.0,0.00013273,2]
[404381664,1770087193438,-500.0,0.00013273,2]
[404381665,1770087193463,-500.0,0.00013273,2]
[404381666,1770087193490,-342.18932159,0.00013273,2]
[404381667,1770087193517,-500.0,0.00013273,2]
[404381668,1770087193544,-492.2014971,0.00013273,2]
[404381669,1770087193748,-7.7985029,0.00013273,2]
[404381670,1770087193774,-500.0,0.00013273,2]
[404381671,1770087193802,-500.0,0.00013273,2]
[404381672,1770087193925,-500.0,0.00013273,2]
[404381673,1770087193954,-500.0,0.00013273,2]
[404381674,1770087193982,-500.0,0.00013273,2]
[404381675,1770087194010,-500.0,0.00013273,2]
[404381676,1770087194039,-500.50589715,0.00013273,2]
[404381677,1770087194125,-98.7290001,0.00013273,2]
[404381678,1770087194174,-197.4580002,0.00013273,2]
[404381679,1770087194651,-2098.8257022,0.00013273,2]
[404381680,1770087196264,-2493.7417026,0.00013273,2]
[404381681,1770087196288,-5012.5265948,0.00013273,2]
[404381682,1770087196462,-500.0,0.00013273,2]
[404381683,1770087196489,-500.0,0.00013273,2]
[404381684,1770087196518,-500.0,0.00013273,2]
[404381685,1770087196546,-502.84463315,0.00013273,2]
[404381686,1770087196574,-500.0,0.00013273,2]
[404381687,1770087196601,-500.29942833,0.00013273,2]
[404381688,1770087196629,-403.20722191,0.00013273,2]
[404381689,1770087196658,-500.0,0.00013273,2]
[404381690,1770087196685,-500.0,0.00013273,2]
[404381691,1770087196713,-500.43142396,0.00013273,2]
[404381692,1770087196819,-262.2100297,0.00013273,2]
[404381693,1770087196849,-500.0,0.00013273,2]
[404381694,1770087196876,-300.0,0.00013673,2]
[404381695,1770087196903,-500.0,0.00013698,2]
[404381696,1770087196931,-500.0,0.00013698,2]
[404381697,1770087196960,-500.0,0.00013698,2]
[404381698,1770087196988,-500.0,0.00013698,2]
[404381699,1770087197017,-500.0,0.00013698,2]
[404381700,1770087197046,-500.0,0.00013699,2]
[404381701,1770087197139,-379.37881138,0.00013699,2]
[404381702,1770087197168,-500.0,0.00013699,2]
[404381703,1770087197263,-500.0,0.00013699,2]
[404381704,1770087197290,-500.0,0.00013699,2]
[404381705,1770087197318,-164.32780383,0.00013699,2]
[404381706,1770087197344,-234.20869305,0.00013699,2]
[404381707,1770087197372,-500.0,0.00013699,2]
[404381708,1770087197398,-500.0,0.00013699,2]
[404381709,1770087197424,-500.0,0.00013699,2]
[404381710,1770087197452,-500.0,0.00013699,2]
[404381711,1770087197479,-500.0,0.00013699,2]
[404381712,1770087197504,-508.49522103,0.00013699,2]
[404381713,1770087197531,-500.0,0.00013699,2]
[404381714,1770087198040,-359.26761016,0.00013273,2]
[404381715,1770087198053,-140.73238984,0.00013273,2]
[404381716,1770087198062,-45.21417434,0.00013699,2]
[404381717,1770087199363,-291.23272246,0.00013699,2]
[404381718,1770087199389,-500.0,0.00013699,2]
[404381719,1770087199415,-500.54078477,0.00013821,2]
[404381720,1770087199442,-1000.0,0.00013821,2]
[404381721,1770087199468,-1000.0,0.00013821,2]
[404381722,1770087199495,-1000.0,0.00013821,2]
[404381723,1770087199520,-416.46298554,0.00013821,2]
[404381724,1770087199622,-500.0,0.00013273,2]
[404381725,1770087199633,-83.53701446,0.00013821,2]
[404381727,1770087211444,-500.0,0.00013273,2]
[404381728,1770087211473,-300.0,0.00013673,2]
[404381729,1770087211500,-500.0,0.00013821,2]
[404381730,1770087211595,-1000.0,0.00013821,2]
[404381731,1770087211623,-1000.0,0.00013821,2]
[404381732,1770087211654,-561.82467733,0.00013821,2]
[404381733,1770087211681,-1000.0,0.00013821,2]
[404381734,1770087211769,-1000.0,0.00013821,2]
[404381735,1770087211796,-598.55870767,0.00013821,2]
[404381736,1770087211822,-1000.0,0.00013821,2]
[404381737,1770087211849,-1000.0,0.00013821,2]
[404381738,1770087211875,-282.4268615,0.00013821,2]
[404381739,1770087211902,-1000.0,0.00013821,2]
[404381740,1770087212095,-276.36064534,0.00013821,2]
[404381741,1770087212107,-238.03886166,0.00013821,2]
[404381742,1770087214785,-426.47002765,0.00013821,2]
[404381743,1770087214826,-1000.0,0.00013821,2]
[404381744,1770087214862,-1000.0,0.00014247,2]
[404381745,1770087214898,-500.0,0.00014247,2]
[404381746,1770087214929,-498.54806363,0.00014247,2]
[404381747,1770087214961,-1000.0,0.00014247,2]
[404381748,1770087215005,-149.97381744,0.00014247,2]
[404381749,1770087215120,-850.02618256,0.00014247,2]
[404381750,1770087217616,-237.37671403,0.00014247,2]
[404381751,1770087217646,-1000.0,0.00014247,2]
[404381752,1770087217689,-7525.25657194,0.00014268,2]
[404381753,1770087220662,-946.71931897,0.00014268,2]
[404381754,1770087220695,-1500.0,0.00014368,2]
[404381755,1770087220726,-1500.0,0.00014368,2]
[404381756,1770087220757,-606.57136206,0.00014368,2]
[404381757,1770087220822,-893.42863794,0.00014368,2]
[404381758,1770087223707,-1500.0,0.00014368,2]
[404381759,1770087223736,-1000.0,0.00014368,2]
[404381760,1770087223761,-400.22693379,0.00014368,2]
[404381761,1770087223787,-1397.62397769,0.00014368,2]
[404381762,1770087223923,-1404.30817704,0.00014368,2]
[404381809,1770087257454,-5000.0,0.0001314,2]
[404381810,1770087257487,-0.01,0.00013273,2]
[404381811,1770087260364,-499.99,0.00013273,2]
[404381812,1770087260389,-500.0,0.00013273,2]
[404381813,1770087260415,-500.0,0.00013273,2]
[404381814,1770087260440,-502.06410016,0.00013273,2]
[404381815,1770087260467,-501.16392305,0.00013273,2]
[404381816,1770087260493,-503.26389974,0.00013273,2]
[404381817,1770087260520,-500.0,0.00013273,2]
[404381818,1770087260546,-500.0,0.00013699,2]
[404381819,1770087260572,-500.51079263,0.00013699,2]
[404381820,1770087260598,-485.22863622,0.00013699,2]
[404381821,1770087260728,-15.5672964,0.00013699,2]
[404381822,1770087266534,-500.0,0.00013272,2]
[404381823,1770087266564,-500.0,0.00013272,2]
[404381824,1770087266592,-500.0,0.00013272,2]
[404381825,1770087266620,-500.0,0.00013272,2]
[404381826,1770087266648,-500.0,0.00013272,2]
[404381827,1770087266678,-500.0,0.00013272,2]
[404381828,1770087266705,-500.0,0.00013272,2]
[404381829,1770087266732,-500.0,0.00013272,2]
[404381830,1770087266759,-500.0,0.00013272,2]
[404381831,1770087266786,-500.0,0.00013272,2]
[404381832,1770087266922,-0.01,0.00013272,2]
[404381833,1770087278301,-2000.00837387,0.00013139,2]
[404381834,1770087278422,2777.74304629,0.00013001,2]
[404381857,1770087376822,-2999.99162613,0.00013139,2]
[404381858,1770087376853,-210.50990468,0.00013205,2]
[404381859,1770087376882,-300.0,0.0001327,2]
[404381860,1770087376909,-300.0,0.00013271,2]
[404381861,1770087376938,-300.0,0.00013271,2]
[404381862,1770087376966,-300.0,0.00013271,2]
[404381863,1770087377109,-1179.00693838,0.00013271,2]
[404381864,1770087379510,-20.99306162,0.00013271,2]
[404381865,1770087379538,-549.36450005,0.00013272,2]
[404381866,1770087379566,-500.0,0.00013273,2]
[404381867,1770087379593,-500.91906067,0.00013273,2]
[404381868,1770087379712,-211.35179518,0.00013273,2]
[404381869,1770087379739,-500.0,0.00013273,2]
[404381870,1770087379766,-500.0,0.00013273,2]
[404381871,1770087379792,-500.0,0.00013273,2]
[404381872,1770087379822,-500.0,0.00013273,2]
[404381873,1770087379849,-502.05576285,0.00013273,2]
[404381874,1770087379876,-500.0,0.00013273,2]
[404381875,1770087380029,-430.64163926,0.00013273,2]
[404381876,1770087382552,-5000.0,0.00013138,2]
[404381877,1770087382585,-0.01,0.00013273,2]
[404381878,1770087385559,-69.34836074,0.00013273,2]
[404381879,1770087385586,-500.0,0.00013273,2]
[404381880,1770087385615,-300.0,0.00013673,2]
[404381881,1770087388831,3290.65789226,0.0001314,2]
[404381971,1770087437515,-500.0,0.00013273,2]
[404381972,1770087437541,-500.0,0.00013273,2]
[404381973,1770087437568,-500.0,0.00013273,2]
[404381974,1770087437594,-502.82847193,0.00013273,2]
[404381975,1770087437622,-500.0,0.00013273,2]
[404381976,1770087437649,-502.06480189,0.00013273,2]
[404381977,1770087437760,-699.5655601,0.00013426,2]
[404381978,1770087437790,-4300.4344399,0.00013426,2]
[404381979,1770087437818,-579.9625822,0.00013562,2]
[404381980,1770087437852,-239.2159558,0.00013562,2]
[404381983,1770087440387,-500.0,0.00013273,2]
[404381984,1770087440416,-315.256281,0.00013699,2]
[404381985,1770087440444,-501.63013071,0.00013699,2]
[404381986,1770087440472,-532.14555202,0.00013699,2]
[404381987,1770087440499,-500.0,0.00013699,2]
[404381988,1770087440526,-500.0,0.00013699,2]
[404381989,1770087440554,-509.35129804,0.00013699,2]
[404381990,1770087440580,-500.81069172,0.00013699,2]
[404381991,1770087440607,-500.0,0.00013699,2]
[404381992,1770087440637,-500.0,0.00013699,2]
[404381993,1770087440792,-281.62209302,0.00013699,2]
[404381995,1770087443431,-500.0,0.00013273,2]
[404381996,1770087443460,-300.0,0.00013673,2]
[404381997,1770087443488,-218.37790698,0.00013699,2]
[404381998,1770087443516,-500.0,0.00013699,2]
[404381999,1770087443544,-500.0,0.00013699,2]
[404382000,1770087443572,-500.0,0.00013699,2]
[404382001,1770087443602,-502.26914519,0.00013699,2]
[404382002,1770087443630,-500.0,0.00013699,2]
[404382003,1770087443659,-500.0,0.00013699,2]
[404382004,1770087443685,-500.0,0.00013699,2]
[404382005,1770087443713,-458.71589566,0.00013699,2]
[404382007,1770087443882,-41.28410434,0.00013699,2]
[404382010,1770087446532,-500.0,0.00013699,2]
[404382011,1770087446561,-500.0,0.00013699,2]
[404382012,1770087446589,-500.0,0.00013699,2]
[404382013,1770087446619,-500.0,0.00013699,2]
[404382014,1770087446648,-500.0,0.00013699,2]
[404382015,1770087446676,-1000.0,0.00013821,2]
[404382016,1770087446726,-970.30689096,0.00013821,2]
[404382017,1770087446761,-515.95437287,0.00013821,2]
[404382018,1770087446963,-27.48747234,0.00013821,2]
[404382119,1770087620712,-197.02923964,0.00013139,2]
[404382120,1770087620748,-244.0,0.00013272,2]
[404382121,1770087620776,-250.0,0.00013272,2]
[404382122,1770087620803,-1200.0,0.00013272,2]
[404382123,1770087620832,-500.0,0.00013273,2]
[404382124,1770087620862,-500.0,0.00013273,2]
[404382125,1770087620891,-500.0,0.00013273,2]
[404382126,1770087620920,-500.0,0.00013273,2]
[404382127,1770087620952,-503.80157978,0.00013273,2]
[404382128,1770087620978,-197.02923964,0.00013273,2]
[404382129,1770087620989,-244.0,0.00013273,2]
[404382130,1770087621001,-58.97076036,0.00013273,2]
[404382131,1770087621010,-191.02923964,0.00013673,2]
[404382132,1770087621021,-108.97076036,0.00013673,2]
[404382133,1770087621031,-1091.02923964,0.00013682,2]
[404382134,1770087621042,-500.0,0.00013682,2]
[404382135,1770087621053,-500.0,0.00013682,2]
[404382136,1770087621064,-500.0,0.00013682,2]
[404382137,1770087621076,-500.0,0.00013682,2]
[404382138,1770087621090,-503.80157978,0.00013682,2]
[404382139,1770087621102,-259.87054149,0.00013682,2]
[404382322,1770087789728,-300.0,0.00013272,2]
[404382323,1770087789755,-500.0,0.00013273,2]
[404382324,1770087789782,-500.0,0.00013273,2]
[404382325,1770087789808,-500.0,0.00013273,2]
[404382326,1770087789835,-500.0,0.00013273,2]
[404382327,1770087789866,-500.0,0.00013273,2]
[404382328,1770087789897,-500.0,0.00013273,2]
[404382329,1770087789924,-500.0,0.00013273,2]
[404382330,1770087789953,-500.0,0.00013273,2]
[404382331,1770087789982,-500.0,0.00013273,2]
[404382332,1770087790133,-400.01,0.00013273,2]
[404382335,1770087795608,-99.99,0.00013273,2]
[404382336,1770087795644,-500.0,0.00013273,2]
[404382337,1770087795674,-500.0,0.00013273,2]
[404382338,1770087795708,-500.0,0.00013273,2]
[404382339,1770087795741,-500.0,0.00013273,2]
[404382340,1770087795777,-500.0,0.00013273,2]
[404382341,1770087795810,-500.0,0.00013273,2]
[404382342,1770087795946,-3800.03,0.00013545,2]
[404382344,1770087801733,-500.0,0.00013273,2]
[404382345,1770087801766,-1199.97,0.00013545,2]
[404382346,1770087801827,-6600.07,0.00013599,2]
[404382347,1770087803373,160.0,1.1e-06,2]
[404382348,1770087809075,160.0,1.1e-06,2]
[404382349,1770087811255,160.0,1.1e-06,2]
[404382350,1770087812377,160.0,1.1e-06,2]
[404382351,1770087813406,160.0,1.1e-06,2]
[404382352,1770087814466,160.0,1.1e-06,2]
[404382353,1770087815513,160.0,1.1e-06,2]
[404382354,1770087816613,160.0,1.1e-06,2]
[404382355,1770087817735,160.0,1.1e-06,2]
[404382356,1770087818819,160.0,1.1e-06,2]
[404382358,1770087860460,-5000.0,0.0001314,2]
[404382359,1770087860486,-500.0,0.00013273,2]
[404382360,1770087860511,-500.0,0.00013273,2]
[404382361,1770087860534,-469.44485319,0.00013273,2]
[404382362,1770087860560,-812.90890452,0.00013599,2]
[404382363,1770087860584,-300.0,0.00013673,2]
[404382364,1770087860608,-500.0,0.00013698,2]
[404382365,1770087860636,-500.0,0.00013698,2]
[404382366,1770087860660,-500.0,0.00013698,2]
[404382367,1770087860685,-500.0,0.00013698,2]
[404382368,1770087860709,-1366.49762205,0.00013698,2]
[404382369,1770087860733,-500.0,0.00013699,2]
[404382370,1770087860756,-500.0,0.00013699,2]
[404382371,1770087860867,-500.0,0.00013699,2]
[404382372,1770087860894,-500.0,0.00013699,2]
[404382373,1770087860918,-500.0,0.00013699,2]
[404382374,1770087860942,-500.0,0.00013699,2]
[404382375,1770087860966,-500.0,0.00013699,2]
[404382376,1770087860991,-500.0,0.00013699,2]
[404382377,1770087861014,-500.0,0.00013699,2]
[404382378,1770087861038,-448.05540841,0.00013699,2]
[404382379,1770087861061,-500.0,0.00013699,2]
[404382380,1770087861084,-500.0,0.00013699,2]
[404382381,1770087861107,-500.0,0.00013699,2]
[404382382,1770087861130,-500.0,0.00013699,2]
[404382383,1770087861153,-500.0,0.00013699,2]
[404382384,1770087861179,-500.0,0.00013699,2]
[404382385,1770087861204,-500.0,0.00013699,2]
[404382386,1770087861230,-500.62738152,0.00013699,2]
[404382387,1770087861254,-500.0,0.00013699,2]
[404382388,1770087861277,-500.0,0.00013699,2]
[404382389,1770087861299,-500.0,0.00013699,2]
[404382390,1770087861321,-500.0,0.00013699,2]
[404382391,1770087861344,-500.0,0.00013699,2]
[404382392,1770087861367,-500.0,0.00013699,2]
[404382393,1770087861390,-500.0,0.00013699,2]
[404382394,1770087861414,-500.0,0.00013699,2]
[404382395,1770087861437,-345.17342818,0.00013699,2]
[404382396,1770087861460,-501.41070703,0.00013699,2]
[404382397,1770087861484,-255.8816951,0.00013699,2]
[404382398,1770087861832,-244.91109753,0.00013699,2]
[404382399,1770087861856,-500.0,0.00013699,2]
[404382400,1770087861880,-556.02057263,0.00013699,2]
[404382401,1770087861907,-287.21402463,0.00013699,2]
[404382402,1770087861931,-500.0,0.00013699,2]
[404382403,1770087861957,-501.32176623,0.00013699,2]
[404382404,1770087861982,-500.0,0.00013699,2]
[404382405,1770087862005,-500.0,0.00013699,2]
[404382406,1770087862029,-500.0,0.00013699,2]
[404382407,1770087862053,-500.70746327,0.00013699,2]
[404382408,1770087862076,-448.60615022,0.00013699,2]
[404382409,1770087862100,-500.0,0.00013699,2]
[404382410,1770087862125,-501.62019934,0.00013821,2]
[404382411,1770087862150,-501.13917919,0.00013821,2]
[404382412,1770087862174,-502.90121657,0.00013821,2]
[404382413,1770087862198,-1000.0,0.00013821,2]
[404382414,1770087862221,-1005.94203313,0.00013821,2]
[404382415,1770087862246,-502.28567286,0.00013821,2]
[404382416,1770087862270,-670.61122218,0.00013821,2]
[404382417,1770087862292,-502.41895084,0.00013821,2]
[404382418,1770087862315,-1000.0,0.00013821,2]
[404382419,1770087862338,-1000.0,0.00013821,2]
[404382420,1770087862361,-1000.0,0.00013821,2]
[404382421,1770087862384,-1000.0,0.00013821,2]
[404382422,1770087862407,-1000.0,0.00013821,2]
[404382423,1770087862430,-1000.0,0.00013821,2]
[404382424,1770087862454,-503.57547916,0.00013865,2]
[404382425,1770087862479,-877.47,0.00013865,2]
[404382426,1770087862510,-6893.25497222,0.00013866,2]
[404382427,1770087862551,-8176.61591938,0.00013866,2]
[404382428,1770087862575,-168.10936472,0.00013973,2]
[404382429,1770087862600,-164.15053695,0.00013973,2]
[404382430,1770087862624,-300.4308588,0.00014069,2]
[404382431,1770087862649,-600.0,0.00014221,2]
[404382432,1770087862673,-877.47,0.00014246,2]
[404382433,1770087862701,-381.76872298,0.00014247,2]
[404382434,1770087862724,-1027.92486784,0.00014247,2]
[404382435,1770087862746,-1000.0,0.00014247,2]
[404382436,1770087862769,-1000.0,0.00014247,2]
[404382437,1770087862793,-501.39091685,0.00014247,2]
[404382438,1770087862817,-1000.0,0.00014247,2]
[404382439,1770087862841,-1000.0,0.00014247,2]
[404382440,1770087862865,-1001.43037161,0.00014247,2]
[404382441,1770087862888,-668.46137547,0.00014247,2]
[404382442,1770087862915,-631.95521422,0.00014247,2]
[404382443,1770087862949,-1001.44961291,0.00014247,2]
[404382444,1770087862975,-1000.0,0.00014247,2]
[404382445,1770087862999,-500.0,0.00014247,2]
[404382446,1770087863034,-1000.0,0.00014247,2]
[404382447,1770087863064,-676.10190304,0.00014247,2]
[404382448,1770087863088,-1000.0,0.00014247,2]
[404382449,1770087863112,-1000.0,0.00014247,2]
[404382450,1770087863136,-322.74033523,0.00014247,2]
[404382451,1770087863635,-677.25966477,0.00014247,2]
[404382452,1770087863660,-1000.0,0.00014247,2]
[404382453,1770087863766,-1000.0,0.00014247,2]
[404382454,1770087863796,-1000.0,0.00014247,2]
[404382455,1770087863821,-1036.69780885,0.00014247,2]
[404382456,1770087863846,-1000.0,0.00014247,2]
[404382457,1770087863876,-1000.0,0.00014247,2]
[404382458,1770087863904,-1000.0,0.00014247,2]
[404382459,1770087863931,-1010.85316319,0.00014247,2]
[404382460,1770087863958,-1002.52398515,0.00014247,2]
[404382461,1770087863984,-501.72998214,0.00014247,2]
[404382462,1770087864009,-1002.76276556,0.00014247,2]
[404382463,1770087864034,-1000.0,0.00014247,2]
[404382464,1770087864059,-529.78488538,0.00014247,2]
[404382465,1770087864084,-942.19195408,0.00014247,2]
[404382466,1770087864109,-1500.0,0.00014368,2]
[404382467,1770087864134,-1500.0,0.00014368,2]
[404382468,1770087864158,-1500.0,0.00014368,2]
[404382469,1770087864184,-1500.0,0.00014368,2]
[404382470,1770087864209,-1500.0,0.00014368,2]
[404382471,1770087864233,-1500.0,0.00014368,2]
[404382472,1770087864256,-1528.68511647,0.00014368,2]
[404382473,1770087864280,-480.0,0.00014599,2]
[404382474,1770087864303,-287.51067441,0.00014768,2]
[404382475,1770087864339,-321.42505033,0.00014768,2]
[404382476,1770087864363,-500.0,0.00014794,2]
[404382477,1770087864387,-877.47,0.00014794,2]
[404382478,1770087864410,-501.81762931,0.00014795,2]
[404382479,1770087864434,-502.1022634,0.00014795,2]
[404382480,1770087864458,-505.37497233,0.00014795,2]
[404382481,1770087864482,-430.12648011,0.00014795,2]
[404382482,1770087864506,-244.41498166,0.00014795,2]
[404382483,1770087864529,-1398.14320347,0.00014795,2]
[404382484,1770087864552,-578.50495698,0.00014795,2]
[404382485,1770087864574,-541.70062063,0.00014795,2]
[404382487,1770087864597,-502.66447988,0.00014795,2]
[404382489,1770087864621,-1500.0,0.00014795,2]
[404382490,1770087864645,-501.67754282,0.00014795,2]
[404382491,1770087864667,-458.4481964,0.00014795,2]
[404382492,1770087864690,-888.80744541,0.00014795,2]
[404382493,1770087864713,-1500.0,0.00014795,2]
[404382494,1770087864737,-1500.0,0.00014795,2]
[404382495,1770087864759,-1183.66927089,0.00014795,2]
[404382496,1770087864782,-877.47,0.00014915,2]
[404382497,1770087864805,-877.47,0.00014916,2]
[404382498,1770087864828,-2000.0,0.00014916,2]
[404382499,1770087864852,-2000.0,0.00014916,2]
[404382500,1770087864875,-1774.88245401,0.00014916,2]
[404382501,1770087864900,-508.25672554,0.00014916,2]
[404382502,1770087864925,-2000.0,0.00014916,2]
[404382503,1770087864950,-525.57372683,0.00014916,2]
[404382504,1770087865043,-1474.42627317,0.00014916,2]
[404382505,1770087865069,-1404.55007101,0.00015,2]
[404382506,1770087865094,-10000.0,0.00015342,2]
[404382507,1770087865119,-501.8715295,0.00015342,2]
[404382508,1770087865143,-2000.0,0.00015342,2]
[404382509,1770087865166,-1004.78667089,0.00015342,2]
[404382510,1770087865190,-877.47,0.00015361,2]
[404382511,1770087865213,-7736.89545543,0.00015361,2]
[404382512,1770087866055,-7332.97543617,0.00015361,2]
[404382513,1770087866078,-5776.5,0.00015442,2]
[404382514,1770087866101,-1009.63103854,0.00015464,2]
[404382515,1770087866124,-520.70922328,0.00015464,2]
[404382516,1770087866147,-2500.0,0.00015464,2]
[404382517,1770087866171,-2500.0,0.00015464,2]
[404382518,1770087866195,-877.47,0.00015558,2]
[404382519,1770087866218,-2575.18,0.00015559,2]
[404382520,1770087866242,-1524.47320069,0.0001589,2]
[404382521,1770087866264,-300.4308588,0.00015955,2]
[404382522,1770087866288,-82.63024252,0.00016012,2]
[404382523,1770087867166,-404.88046819,0.00016012,2]
[404382524,1770087867192,-3017.04907314,0.00016012,2]
[404382525,1770087867219,-155.41717842,0.00016438,2]
[404382526,1770087867244,-877.47,0.00016856,2]
[404382527,1770087867268,-15069.8708916,0.00016857,2]
[404382528,1770087867291,-300.4308588,0.0001784,2]
[404382529,1770087867315,-877.47,0.00018351,2]